[Event "Gibraltar Junior Intl U16 2019"]
[Site "Caleta"]
[Date "2019.08.18"]
[Round "5.20"]
[White "Garcia Calero, Jose Maria"]
[Black "Miller, Max C"]
[Result "1/2-1/2"]
[ECO "B25"]
[WhiteElo "1395"]
[BlackElo "1563"]
[Annotator "NA"]
[PlyCount "80"]
[EventDate "2019.08.16"]
[EventType "swiss"]
[EventCountry "GGB"]
[SourceTitle "playchess.com"]
[Source "ChessBase"]
[SourceQuality "1"]
[TimeControl "6600+10"]

1. e4 {[%emt 0:00:00]} c5 {[%emt 0:00:00]} 2. Nc3 {[%emt 0:00:05]} Nc6 {[%emt 0:00:00]} 3. g3 {[%emt 0:00:05]} d6 {[%emt 0:00:40]} 4. Bg2 {[%emt 0:00:06]} g6 {[%emt 0:00:25]} 5. d3 {[%emt 0:00:05]} Bg7 {[%emt 0:00:05]} 6. f4 {[%emt 0:00:05]} f5 {[%emt 0:00:51]} 7. Nf3 {[%emt 0:01:14]} Qc7 {[%emt 0:02:45]} 8. O-O {[%emt 0:00:40]} Bd7 {[%emt 0:01:06]} 9. Rb1 {[%emt 0:11:35]} e6 {[%emt 0:05:50]} 10. Bd2 {[%emt 0:03:03]} a6 {[%emt 0:02:05]} 11. Ne2 {[%emt 0:01:28]} Nge7 {[%emt 0:01:53]} 12. Bc3 {[%emt 0:01:06]} e5 {[%emt 0:01:32]} 13. exf5 {[%emt 0:00:51]} Nxf5 {[%emt 0:00:17]} 14. Qd2 {[%emt 0:07:58]} O-O-O {[%emt 0:02:16]} 15. fxe5 {[%emt 0:07:00]} dxe5 {[%emt 0:00:55]} 16. Ng5 {[%emt 0:00:30]} Bh6 {[%emt 0:03:13]} 17. Qc1 {[%emt 0:02:51]} Ncd4 {[%emt 0:10:54]} 18. Nxd4 {[%emt 0:03:45]} Nxd4 {[%emt 0:00:20]} 19. Rf2 {[%emt 0:02:19]} Rdf8 {[%emt 0:05:03]} 20. Bxd4 {[%emt 0:06:08]} exd4 {[%emt 0:01:41]} 21. Rxf8+ {[%emt 0:07:27]} Rxf8 {[%emt 0:03:34]} 22. Kh1 {[%emt 0:03:58]} Bc6 {[%emt 0:05:54]} 23. Qd2 {[%emt 0:11:30]} Bxg2+ {[%emt 0:01:27]} 24. Kxg2 {[%emt 0:00:02]} Qc6+ {[%emt 0:00:14]} 25. Kg1 {[%emt 0:00:43]} Qd5 {[%emt 0:01:33]} 26. h4 {[%emt 0:02:48]} Bxg5 {[%emt 0:03:37]} 27. Qxg5 {[%emt 0:00:46]} Qxg5 {[%emt 0:00:22]} 28. hxg5 {[%emt 0:00:09]} Rf5 {[%emt 0:00:06]} 29. Rf1 {[%emt 0:01:17]} Rxf1+ {[%emt 0:18:05]} 30. Kxf1 {[%emt 0:00:28]} Kd7 {[%emt 0:00:16]} 31. Kf2 {[%emt 0:00:52]} Ke6 {[%emt 0:00:07]} 32. g4 {[%emt 0:00:17]} Kd5 {[%emt 0:00:25]} 33. Kf3 {[%emt 0:02:04]} b5 {[%emt 0:01:52]} 34. b3 {[%emt 0:05:00]} a5 {[%emt 0:02:58]} 35. a3 {[%emt 0:01:25]} a4 {[%emt 0:03:22]} 36. bxa4 {[%emt 0:01:33]} bxa4 {[%emt 0:05:32]} 37. Kf4 {[%emt 0:00:37]} Kd6 {[%emt 0:02:13]} 38. Ke4 {[%emt 0:00:16]} Ke6 {[%emt 0:00:11]} 39. Kf4 {[%emt 0:00:06]} Kd5 {[%emt 0:00:07]} 40. Kf3 {[%emt 0:01:10]} Ke6 {[%emt 0:00:03]} 1/2-1/2

[Event "Gibraltar Junior Intl U16 2019"]
[Site "Caleta"]
[Date "2019.08.18"]
[Round "5.21"]
[White "Gaspar Lopez, Rocio"]
[Black "Walker, Max"]
[Result "0-1"]
[ECO "B90"]
[WhiteElo "1367"]
[BlackElo "1667"]
[Annotator "NA"]
[PlyCount "254"]
[EventDate "2019.08.16"]
[EventType "swiss"]
[EventCountry "GGB"]
[SourceTitle "playchess.com"]
[Source "ChessBase"]
[SourceQuality "1"]
[TimeControl "6600+10"]

1. e4 {[%emt 0:00:00]} c5 {[%emt 0:00:00]} 2. Nf3 {[%emt 0:00:00]} d6 {[%emt 0:00:00]} 3. d4 {[%emt 0:00:04]} cxd4 {[%emt 0:00:01]} 4. Nxd4 {[%emt 0:00:08]} Nf6 {[%emt 0:00:04]} 5. Nc3 {[%emt 0:00:05]} a6 {[%emt 0:00:03]} 6. h3 {[%emt 0:00:06]} e5 {[%emt 0:00:06]} 7. Nde2 {[%emt 0:00:29]} Be7 {[%emt 0:00:27]} 8. g4 {[%emt 0:00:05]} Be6 {[%emt 0:00:38]} 9. Bg2 {[%emt 0:00:12]} Nc6 {[%emt 0:01:30]} 10. O-O {[%emt 0:00:15]} O-O {[%emt 0:01:25]} 11. Ng3 {[%emt 0:00:08]} Bc4 {[%emt 0:03:22]} 12. Re1 {[%emt 0:00:46]} b5 {[%emt 0:04:40]} 13. Nd5 {[%emt 0:09:14]} Bxd5 {[%emt 0:02:00]} 14. exd5 {[%emt 0:00:46]} Na5 {[%emt 0:01:39]} 15. Nf5 {[%emt 0:06:39]} Nd7 {[%emt 0:02:27]} 16. Nxe7+ {[%emt 0:08:15]} Qxe7 {[%emt 0:00:07]} 17. f4 {[%emt 0:00:58]} Rac8 {[%emt 0:02:01]} 18. b3 {[%emt 0:13:14]} Rfe8 {[%emt 0:05:15]} 19. Ba3 {[%emt 0:06:03]} Qf6 {[%emt 0:02:38]} 20. f5 {[%emt 0:07:08]} Nb7 {[%emt 0:02:06]} 21. Re2 {[%emt 0:06:30]} Nbc5 {[%emt 0:01:26]} 22. Qe1 {[%emt 0:00:14]} e4 {[%emt 0:02:46]} 23. Rd1 {[%emt 0:05:38]} Ne5 {[%emt 0:02:04]} 24. Kh1 {[%emt 0:03:24]} Qh6 {[%emt 0:02:05]} 25. Bc1 {[%emt 0:02:13]} Qf6 {[%emt 0:02:14]} 26. Rdd2 {[%emt 0:07:26]} Kf8 {[%emt 0:01:43]} 27. Bb2 {[%emt 0:03:58]} Qh6 {[%emt 0:00:52]} 28. Bxe5 {[%emt 0:04:35]} Rxe5 {[%emt 0:00:19]} 29. Re3 {[%emt 0:05:00]} Nd7 {[%emt 0:02:29]} 30. Qg3 {[%emt 0:04:45]} Qf6 {[%emt 0:05:08]} 31. Ree2 {[%emt 0:03:51]} Rce8 {[%emt 0:05:01]} 32. Qe1 {[%emt 0:01:55]} e3 {[%emt 0:04:27]} 33. Rd1 {[%emt 0:02:32]} Nc5 {[%emt 0:00:45]} 34. Ra1 {[%emt 0:00:42]} Ne4 {[%emt 0:01:32]} 35. Bxe4 {[%emt 0:02:09]} Rxe4 {[%emt 0:00:07]} 36. Rd1 {[%emt 0:02:19]} Qe5 {[%emt 0:02:21]} 37. Rd3 {[%emt 0:00:31]} h5 {[%emt 0:04:18]} 38. Qg1 {[%emt 0:02:05]} hxg4 {[%emt 0:01:09]} 39. hxg4 {[%emt 0:00:02]} f6 {[%emt 0:02:00]} 40. Qh2 {[%emt 0:01:17]} Qa1+ {[%emt 0:00:42]} 41. Qg1 {[%emt 0:00:39]} Qxg1+ {[%emt 0:01:13]} 42. Kxg1 {[%emt 0:00:01]} Rxg4+ {[%emt 0:00:21]} 43. Kh2 {[%emt 0:00:12]} Rf4 {[%emt 0:00:56]} 44. Rdxe3 {[%emt 0:00:06]} Rxe3 {[%emt 0:00:13]} 45. Rxe3 {[%emt 0:00:02]} Rxf5 {[%emt 0:00:11]} 46. Rc3 {[%emt 0:00:32]} Rxd5 {[%emt 0:00:07]} 47. Rc6 {[%emt 0:00:17]} Ke7 {[%emt 0:00:28]} 48. Kg3 {[%emt 0:00:08]} Rd2 {[%emt 0:00:09]} 49. Kf3 {[%emt 0:00:09]} Ke6 {[%emt 0:00:18]} 50. Ke3 {[%emt 0:00:02]} Rh2 {[%emt 0:00:13]} 51. Kd3 {[%emt 0:00:24]} Rh3+ {[%emt 0:00:06]} 52. Kd2 {[%emt 0:00:03]} Kd5 {[%emt 0:01:05]} 53. Rxa6 {[%emt 0:00:07]} g5 {[%emt 0:00:38]} 54. a4 {[%emt 0:00:21]} bxa4 {[%emt 0:00:11]} 55. Rxa4 {[%emt 0:00:01]} f5 {[%emt 0:01:18]} 56. Ra5+ {[%emt 0:00:12]} Ke6 {[%emt 0:01:45]} 57. b4 {[%emt 0:00:04]} g4 {[%emt 0:00:10]} 58. b5 {[%emt 0:00:15]} g3 {[%emt 0:00:12]} 59. Ra1 {[%emt 0:00:21]} Kd5 {[%emt 0:04:23]} 60. b6 {[%emt 0:00:06]} Kc6 {[%emt 0:00:11]} 61. Rf1 {[%emt 0:00:15]} g2 {[%emt 0:00:18]} 62. Rg1 {[%emt 0:00:09]} Rg3 {[%emt 0:00:49]} 63. b7 {[%emt 0:00:10]} Kxb7 {[%emt 0:00:08]} 64. Ke2 {[%emt 0:00:02]} f4 {[%emt 0:00:50]} 65. Kf2 {[%emt 0:00:04]} Rc3 {[%emt 0:00:07]} 66. Rb1+ {[%emt 0:00:20]} Kc6 {[%emt 0:00:08]} 67. Kxg2 {[%emt 0:00:04]} Rxc2+ {[%emt 0:00:09]} 68. Kf3 {[%emt 0:00:01]} Rc4 {[%emt 0:00:53]} 69. Rh1 {[%emt 0:00:10]} Kc5 {[%emt 0:02:12]} 70. Rh5+ {[%emt 0:00:06]} d5 {[%emt 0:00:41]} 71. Rf5 {[%emt 0:00:01]} Re4 {[%emt 0:00:29]} 72. Rh5 {[%emt 0:00:26]} Kd4 {[%emt 0:01:43]} 73. Rh1 {[%emt 0:00:03]} Kc3 {[%emt 0:05:57]} 74. Rc1+ {[%emt 0:00:01]} Kd2 {[%emt 0:01:42]} 75. Rc5 {[%emt 0:00:14]} Rd4 {[%emt 0:02:41]} 76. Ra5 {[%emt 0:00:02]} Kc3 {[%emt 0:01:51]} 77. Rc5+ {[%emt 0:00:08]} Kd3 {[%emt 0:01:32]} 78. Ra5 {[%emt 0:00:15]} Kc4 {[%emt 0:01:16]} 79. Ra4+ {[%emt 0:00:18]} Kc5 {[%emt 0:00:14]} 80. Ra5+ {[%emt 0:00:04]} Kd6 {[%emt 0:00:40]} 81. Ra6+ {[%emt 0:00:03]} Ke5 {[%emt 0:00:22]} 82. Ra8 {[%emt 0:00:02]} Rd3+ {[%emt 0:00:17]} 83. Ke2 {[%emt 0:00:08]} Rb3 {[%emt 0:01:12]} 84. Re8+ {[%emt 0:00:21]} Kd4 {[%emt 0:00:22]} 85. Rf8 {[%emt 0:00:03]} Re3+ {[%emt 0:04:08]} 86. Kf2 {[%emt 0:00:05]} f3 {[%emt 0:01:13]} 87. Rf4+ {[%emt 0:00:07]} Kd3 {[%emt 0:00:36]} 88. Ra4 {[%emt 0:00:08]} d4 {[%emt 0:00:54]} 89. Ra3+ {[%emt 0:00:18]} Ke4 {[%emt 0:00:01]} 90. Ra8 {[%emt 0:00:07]} Re2+ {[%emt 0:00:08]} 91. Kf1 {[%emt 0:00:07]} Rb2 {[%emt 0:01:20]} 92. Re8+ {[%emt 0:00:22]} Kf4 {[%emt 0:00:41]} 93. Rf8+ {[%emt 0:00:02]} Ke4 {[%emt 0:00:06]} 94. Re8+ {[%emt 0:00:02]} Kd3 {[%emt 0:00:55]} 95. Ra8 {[%emt 0:00:30]} Ke3 {[%emt 0:00:26]} 96. Re8+ {[%emt 0:00:03]} Kd2 {[%emt 0:00:21]} 97. Kf2 {[%emt 0:00:16]} d3 {[%emt 0:00:20]} 98. Kxf3 {[%emt 0:00:17]} Kc1 {[%emt 0:00:12]} 99. Re1+ {[%emt 0:00:29]} Kd2 {[%emt 0:00:08]} 100. Rh1 {[%emt 0:00:16]} Rb8 {[%emt 0:00:06]} 101. Rh2+ {[%emt 0:00:04]} Kc1 {[%emt 0:00:03]} 102. Ke3 {[%emt 0:00:07]} Rd8 {[%emt 0:00:08]} 103. Rh1+ {[%emt 0:00:02]} Kc2 {[%emt 0:00:02]} 104. Rh2+ {[%emt 0:00:03]} d2 {[%emt 0:00:04]} 105. Rg2 {[%emt 0:00:38]} Kc1 {[%emt 0:00:06]} 106. Rg1+ {[%emt 0:00:02]} d1=Q {[%emt 0:00:02]} 107. Rxd1+ {[%emt 0:00:01]} Rxd1 {[%emt 0:00:02]} 108. Ke2 {[%emt 0:00:01]} Rd8 {[%emt 0:00:06]} 109. Ke3 {[%emt 0:00:02]} Kc2 {[%emt 0:00:01]} 110. Ke2 {[%emt 0:00:01]} Re8+ {[%emt 0:00:01]} 111. Kf3 {[%emt 0:00:01]} Kd2 {[%emt 0:00:01]} 112. Kf4 {[%emt 0:00:01]} Kd3 {[%emt 0:00:01]} 113. Kf3 {[%emt 0:00:01]} Rf8+ {[%emt 0:00:01]} 114. Kg4 {[%emt 0:00:01]} Rf1 {[%emt 0:00:08]} 115. Kg3 {[%emt 0:00:02]} Ke3 {[%emt 0:00:01]} 116. Kg4 {[%emt 0:00:01]} Rf2 {[%emt 0:00:03]} 117. Kg3 {[%emt 0:00:02]} Rf8 {[%emt 0:00:05]} 118. Kg4 {[%emt 0:00:02]} Rf7 {[%emt 0:00:06]} 119. Kg3 {[%emt 0:00:03]} Rg7+ {[%emt 0:00:01]} 120. Kh4 {[%emt 0:00:01]} Rg1 {[%emt 0:00:05]} 121. Kh3 {[%emt 0:00:10]} Kf2 {[%emt 0:00:01]} 122. Kh4 {[%emt 0:00:01]} Kf3 {[%emt 0:00:01]} 123. Kh5 {[%emt 0:00:01]} Kf4 {[%emt 0:00:01]} 124. Kh6 {[%emt 0:00:01]} Kf5 {[%emt 0:00:01]} 125. Kh7 {[%emt 0:00:02]} Kf6 {[%emt 0:00:01]} 126. Kh8 {[%emt 0:00:01]} Kf7 {[%emt 0:00:01]} 127. Kh7 {[%emt 0:00:02]} Rh1# {[%emt 0:00:01]} 0-1

[Event "Gibraltar Junior Intl U16 2019"]
[Site "Caleta"]
[Date "2019.08.18"]
[Round "5.23"]
[White "Dhanwani, Aryan"]
[Black "Lv, Jason"]
[Result "1/2-1/2"]
[ECO "C50"]
[WhiteElo "1319"]
[BlackElo "1532"]
[Annotator "NA"]
[PlyCount "73"]
[EventDate "2019.08.16"]
[EventType "swiss"]
[EventCountry "GGB"]
[SourceTitle "playchess.com"]
[Source "ChessBase"]
[SourceQuality "1"]
[TimeControl "6600+10"]

1. e4 {[%emt 0:00:00]} e5 {[%emt 0:00:00]} 2. Nf3 {[%emt 0:00:09]} Nc6 {[%emt 0:00:05]} 3. Bc4 {[%emt 0:00:05]} Bc5 {[%emt 0:00:07]} 4. d3 {[%emt 0:00:35]} h6 {[%emt 0:00:20]} 5. O-O {[%emt 0:00:31]} Nf6 {[%emt 0:00:16]} 6. Nc3 {[%emt 0:00:59]} d6 {[%emt 0:00:10]} 7. Na4 {[%emt 0:01:48]} Bb6 {[%emt 0:00:24]} 8. Nxb6 {[%emt 0:00:33]} axb6 {[%emt 0:00:02]} 9. Be3 {[%emt 0:00:47]} Be6 {[%emt 0:01:11]} 10. Bxe6 {[%emt 0:01:17]} fxe6 {[%emt 0:00:08]} 11. c3 {[%emt 0:10:08]} O-O {[%emt 0:03:33]} 12. b4 {[%emt 0:06:34]} b5 {[%emt 0:01:59]} 13. a4 {[%emt 0:03:58]} bxa4 {[%emt 0:01:50]} 14. Rxa4 {[%emt 0:00:07]} Qe7 {[%emt 0:00:49]} 15. b5 {[%emt 0:05:33]} Na5 {[%emt 0:02:16]} 16. Qc2 {[%emt 0:05:11]} b6 {[%emt 0:01:29]} 17. Rfa1 {[%emt 0:00:33]} g5 {[%emt 0:05:03]} 18. Bd2 {[%emt 0:01:20]} Rab8 {[%emt 0:06:11]} 19. c4 {[%emt 0:01:59]} Nb7 {[%emt 0:00:59]} 20. d4 {[%emt 0:09:06]} Qh7 {[%emt 0:06:23]} 21. dxe5 {[%emt 0:13:40]} Nxe4 {[%emt 0:09:14]} 22. exd6 {[%emt 0:05:16]} Nbxd6 {[%emt 0:02:32]} 23. Bb4 {[%emt 0:04:35]} g4 {[%emt 0:03:15]} 24. Bxd6 {[%emt 0:01:12]} cxd6 {[%emt 0:01:10]} 25. c5 {[%emt 0:07:02]} bxc5 {[%emt 0:02:45]} 26. Qxe4 {[%emt 0:00:56]} Qxe4 {[%emt 0:00:37]} 27. Rxe4 {[%emt 0:00:23]} gxf3 {[%emt 0:00:25]} 28. Rxe6 {[%emt 0:01:19]} Rfd8 {[%emt 0:03:03]} 29. Ra7 {[%emt 0:02:07]} Rxb5 {[%emt 0:01:12]} 30. Rg6+ {[%emt 0:00:25]} Kh8 {[%emt 0:00:54]} 31. Rxh6+ {[%emt 0:00:07]} Kg8 {[%emt 0:00:13]} 32. gxf3 {[%emt 0:03:54]} c4 {[%emt 0:01:03]} 33. Rg6+ {[%emt 0:01:17]} Kh8 {[%emt 0:00:36]} 34. Rc7 {[%emt 0:00:35]} d5 {[%emt 0:03:09]} 35. Rh6+ {[%emt 0:02:00]} Kg8 {[%emt 0:00:08]} 36. Rg6+ {[%emt 0:06:40]} Kh8 {[%emt 0:00:22]} 37. Rh6+ {[%emt 0:01:01]} 1/2-1/2

[Event "Gibraltar Junior Intl U16 2019"]
[Site "Caleta"]
[Date "2019.08.18"]
[Round "5.24"]
[White "Gough, Theo"]
[Black "Rayner, Hugo"]
[Result "0-1"]
[ECO "B50"]
[WhiteElo "1474"]
[BlackElo "1448"]
[Annotator "NA"]
[PlyCount "86"]
[EventDate "2019.08.16"]
[EventType "swiss"]
[EventCountry "GGB"]
[SourceTitle "playchess.com"]
[Source "ChessBase"]
[SourceQuality "1"]
[TimeControl "6600+10"]

1. e4 {[%emt 0:00:00]} c5 {[%emt 0:00:00]} 2. Nf3 {[%emt 0:00:02]} d6 {[%emt 0:00:02]} 3. c3 {[%emt 0:00:20]} Nf6 {[%emt 0:01:09]} 4. Qc2 {[%emt 0:01:19]} g6 {[%emt 0:01:49]} 5. d4 {[%emt 0:00:36]} cxd4 {[%emt 0:00:06]} 6. cxd4 {[%emt 0:00:06]} Bg7 {[%emt 0:01:01]} 7. Nc3 {[%emt 0:00:41]} O-O {[%emt 0:00:40]} 8. Be2 {[%emt 0:00:46]} Nbd7 {[%emt 0:03:14]} 9. Be3 {[%emt 0:01:00]} e5 {[%emt 0:01:57]} 10. d5 {[%emt 0:01:00]} Nb6 {[%emt 0:00:37]} 11. Qd2 {[%emt 0:01:33]} Ne8 {[%emt 0:02:23]} 12. Bh6 {[%emt 0:04:11]} f5 {[%emt 0:01:27]} 13. Bxg7 {[%emt 0:06:39]} Kxg7 {[%emt 0:00:04]} 14. h4 {[%emt 0:00:34]} h5 {[%emt 0:04:26]} 15. Ng5 {[%emt 0:04:14]} Nf6 {[%emt 0:03:23]} 16. f3 {[%emt 0:06:58]} fxe4 {[%emt 0:03:26]} 17. fxe4 {[%emt 0:01:50]} Ng4 {[%emt 0:04:00]} 18. Rf1 {[%emt 0:05:08]} Rxf1+ {[%emt 0:01:53]} 19. Kxf1 {[%emt 0:00:53]} Qf6+ {[%emt 0:04:23]} 20. Bf3 {[%emt 0:01:07]} Nc4 {[%emt 0:15:38]} 21. Qe2 {[%emt 0:04:41]} Nce3+ {[%emt 0:07:26]} 22. Ke1 {[%emt 0:05:41]} Qf4 {[%emt 0:06:19]} 23. Bxg4 {[%emt 0:09:44]} Bxg4 {[%emt 0:05:24]} 24. Qf2 {[%emt 0:07:51]} Rf8 {[%emt 0:07:37]} 25. Qxf4 {[%emt 0:08:54]} Rxf4 {[%emt 0:00:28]} 26. Kd2 {[%emt 0:01:02]} Nxg2 {[%emt 0:03:21]} 27. Nb5 {[%emt 0:02:05]} Nxh4 {[%emt 0:02:47]} 28. Nxd6 {[%emt 0:01:24]} Nf3+ {[%emt 0:02:26]} 29. Nxf3 {[%emt 0:04:10]} Bxf3 {[%emt 0:00:22]} 30. Rf1 {[%emt 0:01:42]} Bg2 {[%emt 0:00:46]} 31. Rxf4 {[%emt 0:07:04]} exf4 {[%emt 0:00:25]} 32. Nxb7 {[%emt 0:00:06]} Bxe4 {[%emt 0:02:39]} 33. d6 {[%emt 0:00:06]} Bc6 {[%emt 0:00:08]} 34. Nc5 {[%emt 0:00:25]} h4 {[%emt 0:01:11]} 35. Ne6+ {[%emt 0:01:07]} Kf6 {[%emt 0:01:45]} 36. Nxf4 {[%emt 0:00:03]} g5 {[%emt 0:01:17]} 37. Ne2 {[%emt 0:04:02]} Ke6 {[%emt 0:01:25]} 38. Nd4+ {[%emt 0:02:54]} Kxd6 {[%emt 0:01:32]} 39. Nf5+ {[%emt 0:00:01]} Ke5 {[%emt 0:00:50]} 40. Ne3 {[%emt 0:00:30]} Kf4 {[%emt 0:01:05]} 41. Ke2 {[%emt 0:00:12]} h3 {[%emt 0:00:45]} 42. Nf1 {[%emt 0:01:17]} Bg2 {[%emt 0:03:48]} 43. Kf2 {[%emt 0:01:21]} Bxf1 {[%emt 0:01:32]} 0-1

[Event "Gibraltar Junior Intl U16 2019"]
[Site "Caleta"]
[Date "2019.08.18"]
[Round "5.25"]
[White "Harbinson, Alec Ryan"]
[Black "Moughtin-Leay, John"]
[Result "1-0"]
[ECO "C50"]
[WhiteElo "1118"]
[BlackElo "1215"]
[Annotator "NA"]
[PlyCount "23"]
[EventDate "2019.08.16"]
[EventType "swiss"]
[EventCountry "GGB"]
[SourceTitle "playchess.com"]
[Source "ChessBase"]
[SourceQuality "1"]
[TimeControl "6600+10"]

1. e4 {[%emt 0:00:00]} e5 {[%emt 0:00:00]} 2. Nf3 {[%emt 0:00:00]} Nf6 {[%emt 0:00:02]} 3. Nc3 {[%emt 0:00:03]} Nc6 {[%emt 0:00:05]} 4. Bc4 {[%emt 0:00:08]} Bc5 {[%emt 0:00:10]} 5. d3 {[%emt 0:00:15]} O-O {[%emt 0:00:11]} 6. Bg5 {[%emt 0:00:31]} d6 {[%emt 0:00:20]} 7. Nd5 {[%emt 0:00:37]} Be6 {[%emt 0:00:49]} 8. Nxf6+ {[%emt 0:02:19]} gxf6 {[%emt 0:00:16]} 9. Bh6 {[%emt 0:01:31]} Re8 {[%emt 0:00:09]} 10. Nd2 {[%emt 0:08:39]} f5 {[%emt 0:00:43]} 11. exf5 {[%emt 0:12:29]} Bxc4 {[%emt 0:00:06]} 12. Qg4+ {[%emt 0:02:43] Qh4} 1-0

[Event "Gibraltar Junior Intl U16 2019"]
[Site "Caleta"]
[Date "2019.08.19"]
[Round "6.2"]
[White "Cesar Maestre, Bernardo"]
[Black "Revaliente Montoya, Ciro"]
[Result "1-0"]
[ECO "E60"]
[WhiteElo "2084"]
[BlackElo "2006"]
[Annotator "NA RC"]
[PlyCount "111"]
[EventDate "2019.08.16"]
[EventType "swiss"]
[EventCountry "GGB"]
[SourceTitle "playchess.com"]
[Source "ChessBase"]
[SourceQuality "1"]
[TimeControl "6600+10"]

{[%evp 14,107,63,20,32767,32767,32767,32767,32767,32767,66,32767,32767,32767,55,32767,64,32767,32767,32767,71,35,35,32767,39,32767,32767,32767,78,52,77,32767,102,109,166,32767,179,32767,210,204,32767,216,202,218,258,256,237,252,260,257,32767,32767,333,304,32767,289,332,356,32767,504,466,32767,582,611,32767,29990,29990,32767,1029,964,987,1381,1488,137,1225,1169,955,899,1642,4798,29977,29977,29974,436,29981,29982,32767,32767,32767,32767,32767,32767,32767,29985,29985,29986]} 1. d4 {[%emt 0:00:00]} Nf6 {[%emt 0:00:00]} 2. Nf3 {[%emt 0:00:00]} g6 {[%emt 0:00:03]} 3. g3 {[%emt 0:00:00]} Bg7 {[%emt 0:00:07]} 4. Bg2 {[%emt 0:00:03]} d6 {[%emt 0:00:08]} 5. O-O {[%emt 0:00:05]} O-O {[%emt 0:00:06]} 6. c4 {[%emt 0:00:02]} Bf5 {[%emt 0:00:07]} 7. Nc3 {[%emt 0:00:06]} Ne4 {[%emt 0:00:07]} 8. Nd5 {[%emt 0:00:03] E60: King's Indian: Unusual lines and Fianchetto Variation without Nc3} c6 {[%emt 0:00:44]} 9. Ne3 {[%emt 0:00:06]} Bd7 {[%emt 0:00:34]} 10. b3 {[%emt 0:00:09]} c5 $146 {[%emt 0:03:25]} ({Predecessor:} 10... e5 11. Bb2 Re8 12. Qc2 f5 13. Rfd1 Qc7 14. c5 dxc5 15. dxe5 Be6 {1-0 (41) Cheparinov,I (2682)-Caruana,F (2791) Dubai 2014}) 11. Bb2 {[%emt 0:01:10]} Nc6 {[%emt 0:00:20]} 12. Qd3 {[%emt 0:06:58]} cxd4 {[%emt 0:02:57]} 13. Nxd4 {[%emt 0:00:35]} Nc5 {[%emt 0:00:24]} 14. Qd2 {[%emt 0:00:15]} Rc8 {[%emt 0:03:27]} 15. Rfd1 {[%emt 0:01:17]} Nxd4 {[%emt 0:03:14]} 16. Bxd4 {[%emt 0:00:08]} Bc6 {[%emt 0:03:34]} 17. Nd5 {[%emt 0:01:10]} Bxd5 {[%emt 0:01:58]} 18. Bxd5 {[%emt 0:00:13]} a5 {[%emt 0:02:49]} 19. Rac1 {[%emt 0:00:32]} Qc7 {[%emt 0:01:22]} 20. h4 {[%emt 0:01:12]} e6 {[%emt 0:01:38]} 21. Bf3 {[%emt 0:00:29]} Rfd8 {[%emt 0:00:20]} 22. h5 {[%emt 0:00:29]} e5 {[%emt 0:05:48]} 23. Be3 {[%emt 0:01:35]} b6 {[%emt 0:02:38]} (23... e4 $16) 24. Bg5 {[%emt 0:02:41]} Rd7 {[%emt 0:02:01]} 25. Bd5 {[%emt 0:00:16]} Re8 {[%emt 0:01:46]} 26. hxg6 {[%emt 0:00:53]} hxg6 {[%emt 0:00:10]} 27. Kg2 {[%emt 0:01:29]} Ne6 {[%emt 0:01:17]} 28. Rh1 {[%emt 0:00:28]} Nxg5 {[%emt 0:13:16]} 29. Qxg5 {[%emt 0:00:09]} Kf8 {[%emt 0:00:06]} 30. Rh7 {[%emt 0:00:37]} Qd8 {[%emt 0:00:33]} 31. Qe3 {[%emt 0:00:10]} Rc7 {[%emt 0:02:23]} 32. Rch1 {[%emt 0:00:50]} Qf6 {[%emt 0:01:48]} 33. Qxb6 {[%emt 0:00:19]} Rc5 {[%emt 0:00:03]} 34. e4 {[%emt 0:02:39]} Rec8 {[%emt 0:02:12]} 35. a3 {[%emt 0:01:03]} g5 {[%emt 0:04:32]} 36. b4 {[%emt 0:01:50]} axb4 {[%emt 0:00:05]} 37. axb4 {[%emt 0:00:05]} Rxd5 {[%emt 0:00:24]} 38. cxd5 {[%emt 0:00:29]} Rc3 {[%emt 0:01:06]} 39. Qb8+ {[%emt 0:02:14]} Ke7 {[%emt 0:00:07]} 40. Qa7+ {[%emt 0:00:20]} Kf8 {[%emt 0:00:14]} 41. Qa8+ {[%emt 0:00:09]} Ke7 {[%emt 0:00:08]} 42. Rf1 {[%emt 0:00:57]} Qg6 {[%emt 0:01:21]} 43. Qb7+ $2 {[%emt 0:02:19]} (43. Qg8 $18) 43... Kf8 $2 {[%emt 0:00:24]} (43... Kf6 $16) 44. Qb8+ {[%emt 0:00:35]} Ke7 {[%emt 0:00:07] [#]} 45. Rxg7 $1 {[%emt 0:00:40]} Qxg7 {[%emt 0:00:31]} 46. Ra1 {[%emt 0:00:10]} g4 {[%emt 0:01:58]} 47. Ra7+ {[%emt 0:00:26]} Kf6 {[%emt 0:00:01]} 48. Qxd6+ {[%emt 0:00:31]} Kg5 {[%emt 0:00:01] [#]} 49. Rxf7 $3 {[%emt 0:02:27]} Rxg3+ {[%emt 0:01:08]} 50. fxg3 {[%emt 0:00:09]} Qxf7 {[%emt 0:00:02]} 51. Qxe5+ {[%emt 0:00:21]} Kg6 {[%emt 0:00:01]} 52. Qe6+ {[%emt 0:00:16]} Qxe6 {[%emt 0:00:04]} 53. dxe6 {[%emt 0:00:06]} Kf6 {[%emt 0:00:02]} 54. Kf2 {[%emt 0:00:08]} Kxe6 {[%emt 0:00:05]} 55. Ke3 {[%emt 0:00:04]} Ke5 {[%emt 0:00:04]} 56. b5 {[%emt 0:00:07] Kd5} 1-0